bitfinex/quotes_BTCUSD_20250620
["timestamp","ask_amount","ask_price","bid_price","bid_amount"]
[1750445577119,4.699e-05,103340.0,103330.0,0.77339428]
[1750445577345,4.699e-05,103340.0,103330.0,0.86867321]
[1750445578092,4.699e-05,103340.0,103330.0,0.40545985]
[1750445580226,4.699e-05,103340.0,103330.0,0.86867321]
[1750445580689,4.699e-05,103340.0,103330.0,0.88321406]
[1750445582481,4.699e-05,103340.0,103330.0,1.22321406]
[1750445585416,4.699e-05,103340.0,103330.0,1.29321406]
[1750445585821,4.699e-05,103340.0,103330.0,1.32270727]
[1750445586278,4.699e-05,103340.0,103330.0,0.47545985]
[1750445586490,0.47293639,103340.0,103330.0,0.37754092]
[1750445586749,0.50196554,103340.0,103330.0,0.54094092]
[1750445587001,0.50196554,103340.0,103330.0,0.51084092]
[1750445587249,0.6870254,103340.0,103330.0,0.32808669]
[1750445587447,0.53288774,103340.0,103330.0,0.003]
[1750445587655,0.77122586,103340.0,103330.0,0.003]
[1750445589985,0.77122586,103340.0,103330.0,0.20623226]
[1750445591033,0.77122586,103340.0,103330.0,0.003]
[1750445593042,1.11122586,103340.0,103330.0,0.003]
[1750445593249,1.46517464,103340.0,103330.0,0.003]
[1750445593674,1.36990479,103340.0,103330.0,0.003]
[1750445594313,0.22365463,103330.0,103320.0,0.21302912]
[1750445594522,0.69774562,103330.0,103320.0,0.21302912]
[1750445595935,0.66764562,103330.0,103320.0,0.21502912]
[1750445596408,0.68199293,103330.0,103320.0,0.21602912]
[1750445597896,0.68199293,103330.0,103320.0,0.22570741]
[1750445600457,0.70134811,103330.0,103320.0,0.23538551]
[1750445601507,0.70134811,103330.0,103320.0,0.22570741]
[1750445601712,0.69166991,103330.0,103320.0,0.22570741]
[1750445601911,0.70134764,103330.0,103320.0,0.2353856]
[1750445602130,0.71102452,103330.0,103320.0,0.2450637]
[1750445603921,0.71102452,103330.0,103320.0,0.2353856]
[1750445604521,0.24781116,103330.0,103320.0,0.2353856]
[1750445604700,0.71102452,103330.0,103320.0,0.2353856]
[1750445605884,0.24661116,103330.0,103320.0,0.2769637]
[1750445606089,0.01434731,103330.0,103320.0,0.83807719]
[1750445606287,0.40231236,103340.0,103330.0,0.28528668]
[1750445606484,1.07841492,103340.0,103330.0,0.27683971]
[1750445606690,1.07841492,103340.0,103330.0,0.28528697]
[1750445606906,1.08809171,103340.0,103330.0,0.28528697]
[1750445607130,1.07841567,103340.0,103330.0,0.27560971]
[1750445607354,1.07841567,103340.0,103330.0,0.28528706]
[1750445607775,1.07841567,103340.0,103330.0,0.3334407]
[1750445608000,1.07841567,103340.0,103330.0,0.33344014]
[1750445608128,0.84573721,103340.0,103330.0,0.33344014]
[1750445608333,0.87902051,103340.0,103330.0,0.33344014]
[1750445608794,0.4254831,103340.0,103330.0,0.32499307]
[1750445608966,0.4351598,103340.0,103330.0,0.32499307]
[1750445609171,0.4254831,103340.0,103330.0,0.33467014]
[1750445609463,0.61901966,103340.0,103330.0,0.30563921]
[1750445609652,0.60934334,103340.0,103330.0,0.30563921]
[1750445609846,0.60934334,103340.0,103330.0,0.31531666]
[1750445610333,0.60934334,103340.0,103330.0,0.30563921]
[1750445610479,1.0725567,103340.0,103330.0,0.0627]
[1750445611959,1.0737467,103340.0,103330.0,0.0319]
[1750445614303,0.61053334,103340.0,103330.0,0.22545463]
[1750445614508,1.0725567,103340.0,103330.0,0.26633217]
[1750445614708,1.0725567,103340.0,103330.0,0.27600962]
[1750445614989,0.54869703,103340.0,103330.0,0.34241626]
[1750445615220,0.75190972,103340.0,103330.0,0.35209352]
[1750445615706,0.74223349,103340.0,103330.0,0.34241626]
[1750445615927,0.74223349,103340.0,103330.0,0.35209361]
[1750445616180,0.74223349,103340.0,103330.0,0.35309361]
[1750445616722,0.73255698,103340.0,103330.0,0.35309361]
[1750445616914,0.71320349,103340.0,103330.0,0.32406127]
[1750445617114,0.71320349,103340.0,103330.0,0.32606127]
[1750445617672,0.71320349,103340.0,103330.0,0.335739]
[1750445618777,0.71320349,103340.0,103330.0,0.34541663]
[1750445619016,0.71320349,103340.0,103330.0,0.36477143]
[1750445620062,0.71320349,103340.0,103330.0,0.37567803]
[1750445620063,0.02317027,103340.0,103330.0,0.37567803]
[1750445620585,0.71905896,103350.0,103330.0,0.37567803]
[1750445620791,0.07198373,103360.0,103350.0,0.29551928]
[1750445621003,0.73837092,103360.0,103350.0,0.28707408]
[1750445621353,0.73837092,103360.0,103350.0,0.29674937]
[1750445621759,0.5351968,103360.0,103350.0,0.33468784]
[1750445621944,0.52552207,103360.0,103350.0,0.33468784]
[1750445622143,0.54871733,103360.0,103350.0,0.33468784]
[1750445622370,0.54871733,103360.0,103350.0,0.30642457]
[1750445622580,0.55071733,103360.0,103350.0,0.30642457]
[1750445623004,0.54871733,103360.0,103350.0,0.30642457]
[1750445623208,0.5351968,103360.0,103350.0,0.30642457]
[1750445623554,0.54487144,103360.0,103350.0,0.30642457]
[1750445624206,0.73836989,103360.0,103350.0,0.29674937]
[1750445624931,0.54487144,103360.0,103350.0,0.30642457]
[1750445625185,0.55454626,103360.0,103350.0,0.30642457]
[1750445625555,0.74804471,103360.0,103350.0,0.30642457]
[1750445626042,0.55454626,103360.0,103350.0,0.30642457]
[1750445626258,0.53519671,103360.0,103350.0,0.37276862]
[1750445626913,0.76135739,103360.0,103350.0,0.30642457]
[1750445627120,0.76135805,103360.0,103350.0,0.30642457]
[1750445627564,0.55818468,103360.0,103350.0,0.30642457]
[1750445627982,0.75168313,103360.0,103350.0,0.30642457]
[1750445628218,0.76135805,103360.0,103350.0,0.30642457]
[1750445629053,0.54850986,103360.0,103350.0,0.30642457]
[1750445629686,0.55818468,103360.0,103350.0,0.30642457]
[1750445630318,0.54850986,103360.0,103350.0,0.30642457]
[1750445632189,0.05263361,103370.0,103360.0,0.292979]
[1750445632418,0.07198073,103370.0,103360.0,0.457649]
[1750445632648,0.53519409,103370.0,103360.0,0.457649]
[1750445633510,0.54486779,103370.0,103360.0,0.457649]
[1750445633717,0.06230647,103370.0,103360.0,0.457649]
[1750445633915,0.07525045,103370.0,103360.0,0.457649]
[1750445634166,0.08492406,103370.0,103360.0,0.457649]
[1750445634903,0.08492406,103370.0,103360.0,0.48597486]
[1750445635179,0.07525045,103370.0,103360.0,0.48597486]
[1750445635469,0.04296,103370.0,103360.0,0.48697486]
[1750445635662,0.05263314,103370.0,103360.0,0.48697486]
[1750445635865,0.04296,103370.0,103360.0,0.48697486]
[1750445636068,0.04296,103370.0,103360.0,0.48797486]
[1750445636287,0.05263323,103370.0,103360.0,0.48797486]
[1750445636512,0.06230665,103370.0,103360.0,0.459649]
[1750445637185,0.73834742,103370.0,103360.0,0.43907057]
[1750445637397,0.74335071,103370.0,103360.0,0.27563085]
[1750445637618,0.73367729,103370.0,103360.0,0.4184453]
[1750445638032,0.73253729,103370.0,103360.0,0.23565622]
[1750445638226,0.73367729,103370.0,103360.0,0.22450577]
[1750445638664,0.73367729,103370.0,103360.0,0.23418022]
[1750445638835,0.73367729,103370.0,103360.0,0.26518022]
[1750445641366,0.73367729,103370.0,103360.0,0.26518041]
[1750445641899,0.73367729,103370.0,103360.0,0.27485495]
[1750445642120,0.73367729,103370.0,103360.0,0.27485402]
[1750445642755,0.53905644,103370.0,103360.0,0.30665355]
[1750445642960,0.51544374,103370.0,103360.0,0.30665355]
[1750445643188,0.55840374,103370.0,103360.0,0.30665355]
[1750445643613,0.54872995,103370.0,103360.0,0.30665355]
[1750445643824,0.54873005,103370.0,103360.0,0.30665355]
[1750445644036,0.54873005,103370.0,103360.0,0.30778355]
[1750445644449,0.56807773,103370.0,103360.0,0.30665355]
[1750445645278,0.7615583,103370.0,103360.0,0.29697929]
[1750445646340,0.56807857,103370.0,103360.0,0.30665355]
[1750445646753,0.55840459,103370.0,103360.0,0.30665355]
[1750445647265,0.7615583,103370.0,103360.0,0.29697929]
[1750445647495,0.5487307,103370.0,103360.0,0.30665355]
[1750445648629,0.53905644,103370.0,103360.0,0.30778355]
[1750445648843,0.34972155,103390.0,103380.0,0.22247902]
[1750445649072,5e-05,103390.0,103380.0,0.44833902]
[1750445649329,5e-05,103390.0,103380.0,0.44946902]
[1750445649581,0.01317846,103390.0,103380.0,0.44946902]
[1750445649822,5e-05,103390.0,103380.0,1.03616115]
[1750445650061,0.00018652,103390.0,103380.0,1.03616115]
[1750445650298,0.00018652,103390.0,103380.0,0.57294779]
[1750445651017,0.00218652,103390.0,103380.0,0.57394779]
[1750445651238,0.00218652,103390.0,103380.0,0.57294779]
[1750445651459,0.00018652,103390.0,103380.0,0.57294779]
[1750445654453,0.00018652,103390.0,103380.0,0.57394779]
[1750445654963,0.00018652,103390.0,103380.0,0.57294779]
[1750445655196,0.00118652,103390.0,103380.0,0.57294779]
[1750445656535,0.00018652,103390.0,103380.0,0.57294779]
[1750445656989,0.00118652,103390.0,103380.0,0.57294779]
[1750445657255,0.00118652,103390.0,103380.0,0.54474795]
[1750445657256,0.46439988,103390.0,103380.0,0.54474795]
[1750445657490,0.4837427,103390.0,103380.0,0.24480663]
[1750445657716,0.52575499,103390.0,103380.0,0.36641396]
[1750445657946,0.52575499,103390.0,103370.0,0.19347973]
[1750445657947,0.03869069,103380.0,103370.0,0.19347973]
[1750445658173,0.493371,103380.0,103370.0,0.23217407]
[1750445658430,0.536291,103380.0,103370.0,0.23217407]
[1750445658675,0.73942506,103380.0,103370.0,0.21282732]
[1750445658910,0.57796405,103380.0,103370.0,0.22250093]
[1750445659172,0.73942496,103380.0,103370.0,0.22250093]
[1750445659664,0.73942496,103380.0,103370.0,0.24184777]
[1750445659665,0.54596395,103380.0,103370.0,0.24184777]
[1750445659905,0.54482367,103380.0,103370.0,0.24184777]
[1750445660109,0.54482367,103380.0,103370.0,0.27624777]
[1750445660323,0.50190367,103380.0,103370.0,0.27624777]
[1750445660541,0.49223081,103380.0,103370.0,0.27624777]
[1750445660777,5.6226841,103390.0,103380.0,0.21280683]
[1750445661023,5.63235593,103390.0,103380.0,0.2224795]
[1750445661229,5.64088748,103390.0,103380.0,0.23215208]
[1750445661439,5.64088748,103390.0,103380.0,0.27322456]
[1750445661642,0.68585748,103390.0,103380.0,0.31754856]
[1750445661869,0.7384495,103390.0,103380.0,0.27322456]
[1750445662072,0.7395895,103390.0,103380.0,0.27322456]
[1750445662323,0.74926161,103390.0,103380.0,0.27422456]
[1750445662533,0.73959006,103390.0,103380.0,0.27422456]
[1750445662828,5.66560429,103390.0,103380.0,0.001]
[1750445663054,5.69760429,103390.0,103380.0,0.19446101]
[1750445664076,5.69760429,103390.0,103380.0,0.20413406]
[1750445664279,6.03760429,103390.0,103380.0,0.21380701]
[1750445664936,5.80756455,103390.0,103380.0,0.21380701]
[1750445665152,6.03741777,103390.0,103380.0,0.27690567]
[1750445665371,6.02774566,103390.0,103380.0,0.26723272]
[1750445665805,5.5645323,103390.0,103380.0,0.26723272]
[1750445666032,5.99574566,103390.0,103380.0,0.27690558]
[1750445666232,5.99574566,103390.0,103380.0,0.26723272]
[1750445667368,5.99574566,103390.0,103380.0,0.001]
[1750445667369,6.05944566,103390.0,103380.0,0.001]
[1750445668031,6.02694566,103390.0,103380.0,0.001]
[1750445668883,6.02694566,103390.0,103380.0,0.01067305]
[1750445669091,6.02694566,103390.0,103380.0,0.001]
[1750445669294,5.57340422,103390.0,103380.0,0.21380683]
[1750445669499,6.0462896,103390.0,103380.0,0.21380692]
[1750445669724,6.02486124,103390.0,103380.0,0.21380692]
[1750445670210,6.02486124,103390.0,103380.0,0.22347959]
[1750445670416,5.84109012,103390.0,103380.0,0.27581546]
[1750445670594,0.88606012,103390.0,103380.0,0.27581546]
[1750445670822,1.07950242,103390.0,103380.0,0.26614298]
[1750445671145,1.07950242,103390.0,103380.0,0.25647021]
[1750445671552,0.83222876,103390.0,103380.0,0.29834279]
[1750445671850,1.03838876,103390.0,103380.0,0.33841527]
[1750445672070,1.03838876,103390.0,103380.0,0.32874288]
[1750445672266,1.23183106,103390.0,103380.0,0.27899735]
[1750445672554,1.22339942,103390.0,103380.0,0.19446101]
[1750445672782,6.23105768,103390.0,103380.0,0.19446101]
[1750445673009,6.32633661,103390.0,103380.0,0.001]
[1750445673406,6.30063661,103390.0,103380.0,0.19446101]
[1750445673875,5.83742325,103390.0,103380.0,0.20413396]
[1750445674077,6.28874027,103390.0,103380.0,0.26065739]
[1750445674276,1.33495027,103390.0,103380.0,0.29285748]
[1750445674492,1.32527853,103390.0,103380.0,0.24600682]
[1750445674699,1.32527853,103390.0,103380.0,0.25567959]
[1750445675513,0.58177456,103390.0,103380.0,0.30542465]
[1750445675723,1.04498792,103390.0,103380.0,0.30655465]
[1750445675945,1.04498792,103390.0,103380.0,0.35655803]
[1750445677398,0.87702782,103390.0,103380.0,0.35655803]
[1750445677642,0.40414282,103390.0,103380.0,0.35655803]
[1750445677848,0.4331585,103390.0,103380.0,0.30655484]
[1750445678026,0.61692953,103390.0,103380.0,0.30655484]
[1750445678255,0.61692953,103390.0,103380.0,0.001]
[1750445678256,1.10107134,103390.0,103380.0,0.001]
[1750445678457,1.14311853,103390.0,103380.0,0.001]
[1750445678664,1.35571853,103390.0,103380.0,0.001]
[1750445678870,6.31074853,103390.0,103380.0,0.001]
[1750445679078,6.09814853,103390.0,103380.0,0.001]
[1750445679280,6.31070853,103390.0,103380.0,0.001]
[1750445679484,6.09814853,103390.0,103380.0,0.001]
[1750445679958,6.31070853,103390.0,103380.0,0.001]
[1750445680367,6.34090853,103390.0,103380.0,0.001]
[1750445684664,6.00090853,103390.0,103380.0,0.001]
[1750445685721,6.00042853,103390.0,103380.0,0.001]
[1750445685928,6.02948653,103390.0,103380.0,0.001]
[1750445686129,6.03855498,103390.0,103380.0,0.001]
[1750445686357,6.00835498,103390.0,103380.0,0.001]
[1750445688178,5.99928653,103390.0,103380.0,0.001]
[1750445688400,6.03865411,103390.0,103380.0,0.001]
[1750445689968,6.03865309,103390.0,103380.0,0.001]
[1750445690190,6.00835309,103390.0,103380.0,0.001]
[1750445690411,5.99928653,103390.0,103380.0,0.001]
[1750445691264,6.33928653,103390.0,103380.0,0.001]
[1750445692624,6.37128653,103390.0,103380.0,0.001]
[1750445692919,6.33928653,103390.0,103380.0,0.001]
[1750445693349,6.93793645,103390.0,103380.0,0.001]
[1750445693574,6.51606927,103390.0,103380.0,0.001]
[1750445693800,6.42079942,103390.0,103380.0,0.001]
[1750445694024,6.3935984,103390.0,103380.0,0.001]
[1750445694255,6.42080021,103390.0,103380.0,0.001]
[1750445694764,6.34012567,103390.0,103380.0,0.0332]
[1750445694991,6.34112567,103390.0,103380.0,0.0322]
[1750445695210,6.34312567,103390.0,103380.0,0.0322]
[1750445695708,6.34312567,103390.0,103380.0,0.0652]
[1750445695969,6.32378173,103390.0,103370.0,0.23734986]
[1750445696181,1.00634732,103380.0,103370.0,0.0652]
[1750445696820,5.96253732,103380.0,103370.0,0.0652]
[1750445697021,6.00733732,103380.0,103370.0,0.0652]
[1750445699156,5.96253732,103380.0,103370.0,0.0652]
[1750445699365,6.00617732,103380.0,103370.0,0.0652]
[1750445699572,6.00617732,103380.0,103370.0,0.29821305]
[1750445700001,6.00617732,103380.0,103370.0,0.29941305]
[1750445700433,6.02552304,103380.0,103370.0,0.31876035]
[1750445700847,6.02552304,103380.0,103370.0,0.30908684]
[1750445701067,6.01585037,103380.0,103370.0,0.31876054]
[1750445701961,0.34967267,103380.0,103370.0,0.33810748]
[1750445702175,0.44287683,103380.0,103370.0,0.33810748]
[1750445702496,0.40414478,103380.0,103370.0,0.33810748]
[1750445702703,0.3944723,103380.0,103370.0,0.33810748]
[1750445702906,0.34,103380.0,103370.0,0.33810748]
[1750445703153,0.34,103380.0,103370.0,0.50454748]
[1750445703980,0.34,103380.0,103370.0,0.50554748]
[1750445704392,0.34,103380.0,103370.0,0.50754748]
[1750445705477,0.35934488,103380.0,103370.0,0.50754748]
[1750445705904,0.36901745,103380.0,103370.0,0.50754748]
[1750445706094,0.35934478,103380.0,103370.0,0.50754748]
[1750445706524,0.02901745,103380.0,103370.0,0.50754748]
[1750445706896,0.02901745,103380.0,103370.0,0.47768805]
[1750445708161,1.14890631,103380.0,103370.0,0.22867973]
[1750445708370,0.68685295,103380.0,103370.0,0.23685371]
[1750445708820,0.68685295,103380.0,103370.0,0.26925371]
[1750445709413,0.22247959,103380.0,103370.0,0.28860139]
[1750445709616,0.68569295,103380.0,103370.0,0.2982749]
[1750445709829,0.68569295,103380.0,103370.0,0.28860139]
[1750445709969,0.67602028,103380.0,103370.0,0.28860139]
[1750445710408,0.67602028,103380.0,103370.0,0.35453857]
[1750445710620,0.66634742,103380.0,103370.0,0.35453857]
[1750445710808,0.65667437,103380.0,103370.0,0.35453857]
[1750445711010,0.65667437,103380.0,103370.0,0.33519089]
[1750445711217,0.65667437,103380.0,103370.0,0.0661]
[1750445711415,0.19346101,103380.0,103370.0,0.25957973]
[1750445711619,0.65667437,103380.0,103370.0,0.2789276]
[1750445712015,0.65667437,103380.0,103370.0,0.28860139]
[1750445712703,0.65667437,103380.0,103370.0,0.29827509]
[1750445713784,0.65667437,103380.0,103370.0,0.07577398]
[1750445714007,0.65783437,103380.0,103370.0,0.0337]
[1750445715316,0.19462101,103380.0,103370.0,0.30625656]
[1750445715518,0.19346101,103380.0,103370.0,0.31593035]
[1750445715771,0.65667437,103380.0,103370.0,0.31593035]
[1750445715981,0.65667437,103380.0,103370.0,0.26845352]
[1750445716330,0.65667437,103380.0,103370.0,0.25877973]
[1750445716532,0.65667437,103380.0,103370.0,0.26845371]
[1750445717545,0.65667437,103380.0,103370.0,0.2781276]
[1750445718394,0.65667437,103380.0,103370.0,0.28780139]
[1750445718396,0.65667437,103380.0,103370.0,0.29747509]
[1750445718862,0.65667437,103380.0,103370.0,0.2781276]
[1750445719097,0.65667437,103380.0,103370.0,0.0653]
[1750445719312,0.65783437,103380.0,103370.0,0.0337]
[1750445722221,0.65783437,103380.0,103370.0,0.22717973]
[1750445722433,0.65783437,103380.0,103370.0,0.26725362]
[1750445722668,0.65667437,103380.0,103370.0,0.26725362]
[1750445722875,0.65667437,103380.0,103370.0,0.27692732]
[1750445722876,0.66634667,103380.0,103370.0,0.27692732]
[1750445723106,0.66634732,103380.0,103370.0,0.27692732]
[1750445723320,0.66634732,103380.0,103370.0,0.28660093]
[1750445723772,0.66634732,103380.0,103370.0,0.0641]
[1750445724198,0.66750732,103380.0,103370.0,0.0641]
[1750445724406,0.66750732,103380.0,103370.0,0.0337]
[1750445724622,1.45347546,103380.0,103370.0,0.003]
[1750445724832,6.37962961,103380.0,103370.0,0.003]
[1750445725054,6.82092248,103380.0,103370.0,0.003]
[1750445725279,6.82092248,103380.0,103370.0,0.00025005]
[1750445725756,6.8209247,103380.0,103370.0,0.00025005]
[1750445726011,6.93433599,103380.0,103370.0,0.00025005]
[1750445726221,6.94887684,103380.0,103370.0,0.00025005]
[1750445726852,6.94987684,103380.0,103370.0,0.00025005]
[1750445727069,6.94986268,103380.0,103370.0,0.00025005]
[1750445728360,6.92085212,103380.0,103370.0,0.00025005]
[1750445728584,6.92083314,103380.0,103370.0,0.00025005]
[1750445731576,6.92076353,103380.0,103370.0,0.00025005]
[1750445731791,6.91398143,103380.0,103370.0,0.00025005]
[1750445732202,6.94304743,103380.0,103370.0,0.00025005]
[1750445733273,6.94304244,103380.0,103370.0,0.00025005]
[1750445734361,6.9430316,103380.0,103370.0,0.00025005]
[1750445737840,6.94303184,103380.0,103370.0,0.00025005]
[1750445738401,6.94303062,103380.0,103370.0,0.00025005]
[1750445741520,6.94295726,103380.0,103370.0,0.00025005]
[1750445741886,6.94295726,103380.0,103370.0,1e-08]
[1750445742790,6.9198179,103380.0,103370.0,1e-08]
[1750445742992,6.94295879,103380.0,103370.0,1e-08]
[1750445743274,6.72882607,103380.0,103370.0,1e-08]
[1750445743502,6.92228331,103380.0,103370.0,1e-08]
[1750445743745,6.92905958,103380.0,103370.0,1e-08]
[1750445743969,6.93873253,103380.0,103370.0,1e-08]
[1750445744700,6.93195626,103380.0,103370.0,1e-08]
[1750445744933,6.93873205,103380.0,103370.0,1e-08]
[1750445746536,6.91558321,103380.0,103370.0,1e-08]
[1750445747248,6.93872278,103380.0,103370.0,1e-08]
[1750445749370,6.93873917,103380.0,103370.0,1e-08]
[1750445750215,6.93875631,103380.0,103370.0,1e-08]
[1750445750648,6.93875638,103380.0,103370.0,1e-08]
[1750445751611,6.93876287,103380.0,103370.0,1e-08]
[1750445752286,6.91389851,103380.0,103370.0,1e-08]
[1750445752429,6.93878987,103380.0,103370.0,1e-08]
[1750445753253,6.96771433,103380.0,103370.0,1e-08]
[1750445753477,7.00628028,103380.0,103370.0,1e-08]
[1750445753862,6.97308028,103380.0,103370.0,1e-08]
[1750445754352,6.94415582,103380.0,103370.0,1e-08]
[1750445754504,7.00207697,103380.0,103370.0,1e-08]
[1750445755121,6.97485055,103380.0,103370.0,1e-08]
[1750445755288,7.0020938,103380.0,103370.0,1e-08]
[1750445755925,5.16787763,103360.0,103350.0,0.0609]
[1750445756128,6.44774831,103360.0,103350.0,0.0609]
[1750445756663,6.47681531,103360.0,103350.0,0.06207]
[1750445756864,5.48839824,103360.0,103350.0,0.06207]
[1750445757069,0.24506231,103360.0,103350.0,0.28124183]
[1750445757270,0.25668763,103360.0,103350.0,0.28124183]
[1750445757594,0.70055181,103360.0,103350.0,0.06207]
[1750445757946,0.70055181,103360.0,103350.0,0.25558717]
[1750445758158,0.70055181,103360.0,103350.0,0.06207]
[1750445758785,0.70055181,103360.0,103350.0,0.26526302]
[1750445760253,0.70055181,103360.0,103350.0,0.07174585]
[1750445760467,0.70055181,103360.0,103350.0,0.06207]
[1750445761726,0.70055181,103360.0,103350.0,0.25558717]
[1750445761936,0.70055181,103360.0,103350.0,0.27493878]
[1750445762667,0.70555181,103360.0,103350.0,0.27493878]
[1750445762875,0.70555181,103360.0,103350.0,0.27503878]
[1750445763301,0.55784819,103360.0,103350.0,0.27503878]
[1750445763514,1.02106155,103360.0,103350.0,0.28471445]
[1750445764156,1.02106155,103360.0,103350.0,0.3040655]
[1750445764564,1.03073619,103360.0,103350.0,0.3040655]
[1750445764760,1.03073619,103360.0,103350.0,0.30406494]
[1750445765781,1.03073619,103360.0,103350.0,0.29438965]
[1750445766004,1.02106155,103360.0,103350.0,0.2750386]
[1750445766184,1.04484127,103360.0,103350.0,0.06217]
[1750445766383,1.00171181,103360.0,103350.0,0.25568717]
[1750445766590,1.00171181,103360.0,103350.0,0.27503869]
[1750445767580,1.01138654,103360.0,103350.0,0.29438937]
[1750445767811,1.03073581,103360.0,103350.0,0.29438937]
[1750445768011,1.04041073,103360.0,103350.0,0.29438937]
[1750445768246,0.35467417,103360.0,103350.0,0.35382448]
[1750445768456,0.005,103360.0,103350.0,0.35382448]
[1750445768600,0.005,103360.0,103350.0,0.51802448]
[1750445769233,0.41230083,103370.0,103360.0,0.22252207]
[1750445769433,0.41230083,103370.0,103360.0,0.28752207]
[1750445769721,0.61545454,103370.0,103360.0,0.33360207]
[1750445770138,0.88518817,103370.0,103360.0,0.33360207]
[1750445770367,0.87551409,103370.0,103360.0,0.33360207]
[1750445770586,0.41230073,103370.0,103360.0,0.33360207]
[1750445770790,0.41230073,103370.0,103360.0,0.28869207]
[1750445771432,0.41730073,103370.0,103360.0,0.28869207]
[1750445772273,0.38828,103370.0,103360.0,0.28869207]
[1750445772716,0.39795314,103370.0,103360.0,0.28869207]
[1750445772929,0.38828,103370.0,103360.0,0.28869207]
[1750445773351,0.39795314,103370.0,103360.0,0.28869207]
[1750445773580,0.05795314,103370.0,103360.0,0.28869207]
[1750445774017,0.06762647,103370.0,103360.0,0.28969207]
[1750445774222,0.05795314,103370.0,103360.0,0.28969207]
[1750445774429,0.05295314,103370.0,103360.0,0.28969207]
[1750445774638,0.06262647,103370.0,103360.0,0.28969207]
[1750445774865,0.06762647,103370.0,103360.0,0.28969207]
[1750445775071,0.94678287,103380.0,103370.0,0.27792723]
[1750445775340,0.94678287,103380.0,103370.0,0.27909723]
[1750445775543,0.93711039,103380.0,103370.0,0.27909741]
[1750445776811,0.94211039,103380.0,103370.0,0.27909741]
[1750445777239,0.94211039,103380.0,103370.0,0.32926929]
[1750445777452,0.93243762,103380.0,103370.0,0.32926929]
[1750445778482,0.93243762,103380.0,103370.0,0.33894299]
[1750445779566,0.93243762,103380.0,103370.0,0.3195955]
[1750445779773,0.93243762,103380.0,103370.0,0.3196955]
[1750445779982,0.93243762,103380.0,103370.0,0.32936929]
[1750445781032,0.93243762,103380.0,103370.0,0.27919741]
[1750445781483,0.92276467,103380.0,103370.0,0.26952362]
[1750445781484,0.92276467,103380.0,103370.0,0.06637]
[1750445782044,1.48125696,103380.0,103370.0,0.0001]
[1750445782045,1.48245696,103380.0,103370.0,0.0001]
[1750445782258,6.43748696,103380.0,103370.0,0.0001]
[1750445782679,6.49838696,103380.0,103370.0,0.0001]
[1750445782901,0.60525352,103370.0,103360.0,0.0001]
[1750445783133,0.21288882,103340.0,103330.0,0.06457]
[1750445783344,0.71938218,103340.0,103330.0,0.06457]
[1750445783559,0.71938218,103340.0,103330.0,0.0634]
[1750445784456,0.71938218,103340.0,103330.0,0.06354104]
[1750445785308,0.81466111,103340.0,103330.0,0.06354104]
[1750445785518,0.81566111,103340.0,103330.0,0.06354104]
[1750445785724,0.81566111,103340.0,103330.0,0.06468104]
[1750445785941,0.82713865,103340.0,103330.0,0.06468104]
[1750445786151,0.82713865,103340.0,103330.0,0.06354104]
[1750445786377,0.82713865,103340.0,103330.0,0.06364104]
[1750445788704,0.82713865,103340.0,103330.0,0.06478104]
[1750445790233,0.82713865,103340.0,103330.0,0.03074104]
[1750445790442,0.9236085,103340.0,103330.0,0.03074104]
[1750445790648,0.9236085,103340.0,103330.0,0.06184104]
[1750445791304,0.82833865,103340.0,103330.0,0.06184104]
[1750445791529,0.82833865,103340.0,103330.0,0.03074104]
[1750445791743,0.82713865,103340.0,103330.0,0.00034104]
[1750445791962,0.82833865,103340.0,103330.0,0.00034104]
[1750445792185,0.86013865,103340.0,103330.0,0.00034104]
[1750445792410,0.36512529,103340.0,103330.0,0.00034104]
[1750445792634,0.82833865,103340.0,103330.0,0.00034104]
[1750445794119,0.86013865,103340.0,103330.0,0.00034104]
[1750445795235,0.99105865,103340.0,103330.0,0.06334104]
[1750445797022,0.99105865,103340.0,103330.0,0.03224104]
[1750445797238,0.99225865,103340.0,103330.0,0.03224104]
[1750445797934,0.0749899,103340.0,103330.0,0.30664739]
[1750445798143,0.2878791,103340.0,103330.0,0.30778739]
[1750445798360,0.2878791,103340.0,103330.0,0.32714181]
[1750445798573,0.75109246,103340.0,103330.0,0.32714181]
[1750445798794,0.7317401,103340.0,103330.0,0.29811004]
[1750445799002,0.7317401,103340.0,103330.0,0.30778749]
[1750445799217,0.5382042,103340.0,103330.0,0.3271421]
[1750445799421,0.7317401,103340.0,103330.0,0.3271421]
[1750445799638,0.7317401,103340.0,103330.0,0.31746484]
[1750445799850,0.7317401,103340.0,103330.0,0.2671733]
[1750445800085,0.7317401,103340.0,103330.0,0.27685084]
[1750445800514,0.74141633,103340.0,103330.0,0.28652829]
[1750445800722,0.74141633,103340.0,103330.0,0.29620564]
[1750445800931,0.74141633,103340.0,103330.0,0.3058829]
[1750445801148,0.74141633,103340.0,103330.0,0.29620564]
[1750445801390,0.24858632,103340.0,103330.0,0.3559523]
[1750445801599,0.71179968,103340.0,103330.0,0.3570923]
[1750445801839,0.5047194,103340.0,103330.0,0.3570923]
[1750445802053,0.001,103340.0,103330.0,0.93415607]
[1750445802263,0.001,103340.0,103330.0,1.029435]
[1750445802943,5.4807518,103360.0,103350.0,0.28654361]
[1750445803202,0.53539634,103360.0,103350.0,0.3376251]
[1750445803471,0.5257218,103360.0,103350.0,0.5015451]
[1750445803679,0.04316,103360.0,103350.0,0.45160361]
[1750445803975,0.0641419,103360.0,103350.0,0.45160361]
[1750445804191,0.04316,103360.0,103350.0,0.45160361]
[1750445804420,0.05283417,103360.0,103350.0,0.45160361]
[1750445804630,0.00967417,103360.0,103350.0,0.45160361]
[1750445804840,0.02034853,103360.0,103350.0,0.45160361]
[1750445805051,0.01067417,103360.0,103350.0,0.45160361]
[1750445805258,0.01067408,103360.0,103350.0,0.45160361]
[1750445805481,0.02034834,103360.0,103350.0,0.45160361]
[1750445805691,0.03002279,103360.0,103350.0,0.28768361]
[1750445805933,0.03969743,103360.0,103350.0,0.45156361]
[1750445806156,0.51258552,103360.0,103350.0,0.28654361]
[1750445806370,0.51158552,103360.0,103350.0,0.45042361]
[1750445806578,0.51158552,103360.0,103350.0,0.45156361]
[1750445807008,0.70508397,103360.0,103350.0,0.27800841]
[1750445807222,0.69541045,103360.0,103350.0,0.4504238]
[1750445807431,0.69541045,103360.0,103350.0,0.462239]
[1750445807644,0.69541045,103360.0,103350.0,0.4535638]
[1750445808292,1.01606136,103360.0,103350.0,0.066]
[1750445808513,6.67857877,103360.0,103350.0,0.002]
[1750445808719,6.78841981,103360.0,103350.0,0.002]
[1750445809353,6.81748981,103360.0,103350.0,0.002]
[1750445809792,6.83553371,103360.0,103350.0,0.002]
[1750445810025,6.83553371,103360.0,103350.0,0.001]
[1750445810269,6.82024506,103360.0,103350.0,0.001]
[1750445810693,0.21288882,103340.0,103330.0,0.00034104]
[1750445810907,0.72046218,103340.0,103330.0,0.03114104]